bitfinex/quotes_BTCUSD_20241009
["timestamp","ask_amount","ask_price","bid_price","bid_amount"]
[1728491946751,0.02681761,61918.0,61917.0,0.78341578]
[1728491947395,0.02681761,61918.0,61917.0,0.71080698]
[1728491948249,0.002819,61918.0,61917.0,0.71080698]
[1728491948475,0.002819,61918.0,61917.0,0.52700037]
[1728491950053,0.002819,61918.0,61917.0,0.36616273]
[1728491950268,0.002819,61918.0,61917.0,0.017]
[1728491950476,0.084219,61918.0,61917.0,0.017]
[1728491950686,0.10770654,61918.0,61917.0,0.017]
[1728491950905,0.10770654,61918.0,61917.0,0.178506]
[1728491951110,0.10670654,61918.0,61917.0,0.169506]
[1728491951582,0.004819,61918.0,61917.0,0.45913589]
[1728491953411,0.006819,61918.0,61917.0,0.45913589]
[1728491953567,0.001819,61918.0,61917.0,0.45913589]
[1728491954143,0.002819,61918.0,61917.0,0.46813589]
[1728491954803,0.002819,61918.0,61917.0,0.47531132]
[1728491958278,0.001638,61925.0,61917.0,0.47531132]
[1728491958279,0.001638,61925.0,61924.0,0.266488]
[1728491958507,0.001638,61925.0,61924.0,0.76152717]
[1728491959321,0.001638,61925.0,61924.0,0.75652717]
[1728491959541,0.001638,61925.0,61924.0,0.73352717]
[1728491959778,0.003638,61925.0,61924.0,0.74952717]
[1728491960182,0.002638,61925.0,61924.0,0.74152717]
[1728491960590,0.002638,61925.0,61924.0,0.74452717]
[1728491961012,0.003638,61925.0,61924.0,0.75652717]
[1728491961388,0.003638,61925.0,61924.0,0.77952717]
[1728491961598,0.003638,61925.0,61924.0,0.34532564]
[1728491961802,0.003638,61925.0,61924.0,0.184488]
[1728491962545,0.003638,61925.0,61924.0,0.023]
[1728491962755,0.001638,61925.0,61924.0,0.161488]
[1728491962952,0.001638,61925.0,61924.0,0.162488]
[1728491963569,0.001638,61925.0,61924.0,0.161488]
[1728491964992,0.001638,61925.0,61924.0,0.32232564]
[1728491965608,0.001638,61925.0,61924.0,0.32332564]
[1728491965814,0.001638,61925.0,61924.0,0.32632564]
[1728491966016,0.001638,61925.0,61924.0,0.32232564]
[1728491966484,0.001638,61925.0,61924.0,0.32932564]
[1728491967805,0.00097545,61925.0,61924.0,0.39005906]
[1728491968990,0.00097545,61925.0,61924.0,0.38605906]
[1728491969194,0.00097545,61925.0,61924.0,0.38305906]
[1728491969398,0.00097545,61925.0,61924.0,0.38705906]
[1728491969595,0.00097545,61925.0,61924.0,0.38305906]
[1728491970021,0.00097545,61925.0,61924.0,0.49505906]
[1728491971706,0.00097545,61925.0,61924.0,0.51405906]
[1728491971897,0.00097545,61925.0,61924.0,0.52105906]
[1728491972130,0.00097545,61925.0,61924.0,0.52605906]
[1728491978268,0.00124473,61927.0,61926.0,0.289483]
[1728491978467,0.00124473,61927.0,61926.0,0.61112725]
[1728491979301,0.00124473,61927.0,61926.0,0.61712725]
[1728491979551,0.00124473,61927.0,61926.0,0.62312725]
[1728491980370,0.00124473,61927.0,61926.0,0.61712725]
[1728491981175,0.00124473,61927.0,61926.0,0.62212725]
[1728491981597,0.00124473,61927.0,61926.0,0.61712725]
[1728491982014,0.00124473,61927.0,61926.0,0.62312725]
[1728491983968,0.00124473,61927.0,61926.0,0.63120044]
[1728491986993,0.00124473,61927.0,61926.0,0.45732064]
[1728491987410,0.19954473,61927.0,61926.0,0.173483]
[1728491988090,0.19954473,61927.0,61926.0,0.167483]
[1728491988496,0.19954473,61927.0,61926.0,0.164483]
[1728491988702,0.27724473,61927.0,61926.0,0.169483]
[1728491988910,0.27924473,61927.0,61926.0,0.166483]
[1728491989112,0.27924473,61927.0,61926.0,0.161483]
[1728491989364,0.27924473,61927.0,61926.0,0.006]
[1728491989554,0.30273227,61927.0,61926.0,0.006]
[1728491989756,0.30073227,61927.0,61926.0,0.167483]
[1728491989976,0.30273227,61927.0,61926.0,0.167483]
[1728491990505,0.5106323,61927.0,61926.0,0.006]
[1728491990948,0.77646994,61927.0,61926.0,0.006]
[1728491991163,0.163503,61918.0,61914.0,0.24236353]
[1728491991412,0.437403,61918.0,61914.0,0.24236353]
[1728491991621,0.46089054,61918.0,61914.0,0.24236353]
[1728491992612,0.46089054,61918.0,61917.0,0.002638]
[1728491992794,0.46089054,61918.0,61917.0,0.001638]
[1728491992916,0.46089054,61918.0,61917.0,0.002638]
[1728491993142,0.46089054,61918.0,61917.0,0.001638]
[1728491993783,0.46189054,61918.0,61917.0,0.002638]
[1728491994838,0.46689054,61918.0,61917.0,0.003638]
[1728491997159,0.2819,61918.0,61917.0,0.003638]
[1728491997401,0.2799,61918.0,61917.0,0.165144]
[1728491998108,0.005,61918.0,61917.0,0.164144]
[1728491998341,0.005,61918.0,61917.0,0.165144]
[1728491998342,0.006,61918.0,61917.0,0.165144]
[1728491998574,0.001,61918.0,61917.0,0.164144]
[1728491998803,0.003,61918.0,61917.0,0.164144]
[1728491999759,0.002,61918.0,61917.0,0.163144]
[1728491999993,0.003,61918.0,61917.0,0.163144]
[1728492001146,0.1916,61924.0,61923.0,0.16149]
[1728492001379,0.00082,61925.0,61922.0,0.322985]
[1728492001608,0.00082,61925.0,61918.0,0.323005]
[1728492001609,0.00082,61925.0,61920.0,0.322994]
[1728492001820,0.02520467,61925.0,61922.0,0.322986]
[1728492002042,0.00082,61925.0,61924.0,0.161488]
[1728492002300,0.00082,61925.0,61924.0,0.34914473]
[1728492002549,0.00282,61925.0,61924.0,0.34914473]
[1728492002767,0.00082,61925.0,61924.0,0.34914473]
[1728492003830,0.00082,61925.0,61924.0,0.50998237]
[1728492004068,0.00082,61925.0,61924.0,0.69378898]
[1728492004487,0.00082,61925.0,61924.0,0.53598237]
[1728492004709,0.00082,61925.0,61924.0,0.64838481]
[1728492004926,0.00082,61925.0,61924.0,0.65138481]
[1728492005148,0.00082,61925.0,61924.0,0.64838481]
[1728492005371,0.00082,61925.0,61924.0,0.65938481]
[1728492005589,0.00082,61925.0,61924.0,0.82821899]
[1728492005810,0.00082,61925.0,61924.0,0.81721899]
[1728492006239,0.00082,61925.0,61924.0,0.81621899]
[1728492006450,0.00082,61925.0,61924.0,0.82621899]
[1728492007091,0.00082,61925.0,61924.0,0.81621899]
[1728492007311,0.00082,61925.0,61924.0,0.81421899]
[1728492007527,0.00082,61925.0,61924.0,0.66241238]
[1728492007750,0.00082,61925.0,61924.0,0.66541238]
[1728492007968,0.00082,61925.0,61924.0,0.65741238]
[1728492008391,0.00082,61925.0,61924.0,0.55141238]
[1728492008606,0.00082,61925.0,61924.0,0.33335321]
[1728492009249,0.00082,61925.0,61924.0,0.32532564]
[1728492009967,0.00082,61925.0,61924.0,0.33032564]
[1728492010403,0.00082,61925.0,61922.0,0.322986]
[1728492010633,0.00082,61925.0,61924.0,0.004]
[1728492010853,0.00082,61925.0,61924.0,0.006]
[1728492011085,0.00082,61925.0,61924.0,0.161488]
[1728492011531,0.00082,61925.0,61924.0,0.47837417]
[1728492012189,0.00082,61925.0,61924.0,0.48337417]
[1728492012399,0.00082,61925.0,61924.0,0.47837417]
[1728492012638,0.00082,61925.0,61924.0,0.32232564]
[1728492013104,0.00082,61925.0,61924.0,0.32732564]
[1728492013599,0.00082,61925.0,61924.0,0.32232564]
[1728492013835,0.00082,61925.0,61924.0,0.32832564]
[1728492014076,0.00082,61925.0,61924.0,0.33132564]
[1728492014515,0.00082,61925.0,61924.0,0.34032564]
[1728492015700,0.00082,61925.0,61924.0,0.179488]
[1728492015928,0.00082,61925.0,61924.0,0.018]
[1728492016176,0.00082,61925.0,61924.0,0.179488]
[1728492016637,0.00082,61925.0,61924.0,0.018]
[1728492016895,0.00082,61925.0,61924.0,0.161488]
[1728492017115,0.00082,61925.0,61920.0,0.161498]
[1728492017116,0.164305,61925.0,61920.0,0.161498]
[1728492017361,0.40015517,61925.0,61920.0,0.161498]
[1728492017604,0.10288754,61924.0,61918.0,0.00164]
[1728492017838,0.161499,61920.0,61918.0,0.00164]
[1728492018318,0.161491,61923.0,61918.0,0.163143]
[1728492018531,0.0814,61924.0,61919.0,0.323002]
[1728492018532,0.0794,61924.0,61919.0,0.323002]
[1728492018769,0.0794,61924.0,61921.0,0.161494]
[1728492018986,0.0794,61924.0,61919.0,0.161498]
[1728492019192,0.0794,61924.0,61918.0,0.00164]
[1728492019193,0.161501,61919.0,61918.0,0.00164]
[1728492019467,0.322995,61921.0,61918.0,0.00164]
[1728492019468,0.161496,61921.0,61918.0,0.00164]
[1728492019673,0.004,61920.0,61919.0,0.1615]
[1728492020103,0.002,61920.0,61919.0,0.1615]
[1728492020330,0.242889,61924.0,61919.0,0.1615]
[1728492020331,0.002,61922.0,61919.0,0.1615]
[1728492020536,0.0794,61924.0,61919.0,0.1615]
[1728492020537,0.002,61921.0,61920.0,0.161498]
[1728492020761,0.0794,61924.0,61918.0,0.00264]
[1728492020762,0.161501,61919.0,61918.0,0.00164]
[1728492021003,0.163501,61919.0,61918.0,0.00164]
[1728492021422,0.88329537,61919.0,61918.0,0.00164]
[1728492021640,0.90678291,61919.0,61918.0,0.00164]
[1728492023192,0.90978291,61919.0,61918.0,0.00164]
[1728492023396,0.99459549,61919.0,61918.0,0.00164]
[1728492023606,0.99159549,61919.0,61918.0,0.00164]
[1728492023804,0.99559549,61919.0,61918.0,0.00164]
[1728492024008,0.99859549,61919.0,61918.0,0.00264]
[1728492024207,0.99459549,61919.0,61918.0,0.00264]
[1728492024622,1.00159549,61919.0,61918.0,0.00364]
[1728492029086,0.2763,61919.0,61918.0,0.00364]
[1728492029328,0.012,61919.0,61918.0,0.00364]
[1728492030422,0.173501,61919.0,61918.0,0.00364]
[1728492031056,0.012,61919.0,61918.0,0.00364]
[1728492031688,0.173501,61919.0,61918.0,0.00364]
[1728492032106,0.012,61919.0,61918.0,0.00364]
[1728492032379,0.01,61919.0,61918.0,0.00364]
[1728492032602,0.01,61919.0,61918.0,0.165143]
[1728492032817,0.01,61919.0,61918.0,0.240743]
[1728492033250,0.007,61919.0,61918.0,0.239743]
[1728492033731,0.014,61919.0,61918.0,0.240743]
[1728492034178,0.007,61919.0,61918.0,0.40381035]
[1728492034445,0.00082,61925.0,61918.0,0.23807764]
[1728492034685,0.00082,61925.0,61924.0,0.34914473]
[1728492036170,0.00082,61925.0,61924.0,0.35214473]
[1728492036622,0.00082,61925.0,61924.0,0.34914473]
[1728492036860,0.00082,61925.0,61924.0,0.35214473]
[1728492037336,0.00082,61925.0,61924.0,0.34914473]
[1728492038006,0.00082,61925.0,61924.0,0.88633689]
[1728492038213,0.00082,61925.0,61924.0,0.83607336]
[1728492038651,0.00082,61925.0,61924.0,0.84407336]
[1728492038865,0.00082,61925.0,61924.0,0.84007336]
[1728492039096,0.00082,61925.0,61924.0,0.84607336]
[1728492039529,0.00182,61925.0,61924.0,1.03237336]
[1728492039782,0.00182,61925.0,61924.0,1.06037336]
[1728492040208,0.00082,61925.0,61924.0,1.05137336]
[1728492040417,0.00182,61925.0,61924.0,1.06237336]
[1728492040848,0.00182,61925.0,61924.0,1.05237336]
[1728492041307,0.00182,61925.0,61924.0,1.05437336]
[1728492041795,0.00032,61925.0,61924.0,1.04337336]
[1728492042018,0.00032,61925.0,61924.0,1.04637336]
[1728492042957,0.00032,61925.0,61924.0,1.06178912]
[1728492044743,0.00032,61925.0,61924.0,0.83868912]
[1728492044963,0.00032,61925.0,61924.0,0.73868912]
[1728492045396,0.00032,61925.0,61924.0,0.73368912]
[1728492045862,0.00032,61925.0,61924.0,0.75368912]
[1728492046092,0.00032,61925.0,61924.0,1.19415265]
[1728492046311,0.00032,61925.0,61924.0,0.94178912]
[1728492046742,0.00032,61925.0,61924.0,1.05578912]
[1728492047183,0.00032,61925.0,61924.0,1.04678912]
[1728492047685,0.00032,61925.0,61924.0,1.05578912]
[1728492047923,0.00032,61925.0,61924.0,1.09501998]
[1728492048176,0.00032,61925.0,61924.0,1.10601998]
[1728492048419,0.00032,61925.0,61924.0,1.05778912]
[1728492048649,0.00032,61925.0,61924.0,1.06878912]
[1728492048894,0.00032,61925.0,61924.0,1.05778912]
[1728492049082,0.00032,61925.0,61924.0,1.04678912]
[1728492049321,0.00032,61925.0,61924.0,1.05778912]
[1728492051601,0.00032,61925.0,61924.0,1.05942912]
[1728492052482,0.50032,61925.0,61924.0,1.05942912]
[1728492055794,0.50032,61925.0,61924.0,0.4733814]
[1728492056030,0.50032,61925.0,61924.0,0.30540819]
[1728492056248,0.50032,61925.0,61924.0,0.297128]
[1728492056468,0.50032,61925.0,61924.0,0.13564]
[1728492056685,0.69132,61925.0,61924.0,0.13564]
[1728492056912,0.70614852,61925.0,61924.0,0.13564]
[1728492057390,0.70614852,61925.0,61924.0,0.12464]
[1728492057604,0.70614852,61925.0,61924.0,0.03364]
[1728492057854,0.70614852,61925.0,61924.0,0.01064]
[1728492058080,0.86763352,61925.0,61924.0,0.01064]
[1728492058308,0.94713352,61925.0,61924.0,0.00364]
[1728492058538,1.04713352,61925.0,61924.0,0.00564]
[1728492058752,1.21297116,61925.0,61924.0,0.00564]
[1728492058963,1.40062789,61925.0,61924.0,0.00564]
[1728492059177,1.42411543,61925.0,61924.0,0.00164]
[1728492059401,1.43011543,61925.0,61924.0,0.00264]
[1728492060707,1.42811543,61925.0,61924.0,0.00264]
[1728492060952,1.42811543,61925.0,61924.0,0.00364]
[1728492061187,1.42811543,61925.0,61918.0,0.00164]
[1728492061188,0.537001,61919.0,61918.0,0.00164]
[1728492061413,0.537001,61919.0,61906.0,0.001638]
[1728492061414,0.537032,61907.0,61906.0,0.001638]
[1728492061653,0.71269816,61907.0,61906.0,0.001638]
[1728492061876,0.78443823,61907.0,61906.0,0.001638]
[1728492062116,0.268545,61902.0,61901.0,0.001638]
[1728492062343,0.49409272,61902.0,61901.0,0.001638]
[1728492062579,0.45620973,61899.0,61898.0,0.07228247]
[1728492062805,0.1845,61896.0,61889.0,0.24236353]
[1728492062990,0.007,61890.0,61889.0,0.24236353]
[1728492063238,0.4442814,61890.0,61889.0,0.24236353]
[1728492063451,0.268587,61886.0,61873.0,0.00082]
[1728492063676,0.63194913,61886.0,61873.0,0.00082]
[1728492063894,0.82294913,61886.0,61873.0,0.00082]
[1728492064783,0.83294913,61886.0,61885.0,0.25009529]
[1728492065933,0.86544359,61886.0,61885.0,0.25109529]
[1728492066155,0.91532515,61886.0,61885.0,0.25109529]
[1728492066370,0.96382515,61886.0,61885.0,0.05109529]
[1728492066795,0.95382515,61886.0,61885.0,0.05009529]
[1728492067004,0.94482515,61886.0,61885.0,0.04909529]
[1728492067215,0.95882515,61886.0,61885.0,0.04909529]
[1728492067421,0.97182515,61886.0,61885.0,0.05009529]
[1728492067629,0.98582515,61886.0,61885.0,0.05009529]
[1728492067839,0.97282515,61886.0,61885.0,0.04909529]
[1728492068052,0.52079932,61886.0,61885.0,0.29145882]
[1728492068259,0.48629932,61886.0,61885.0,0.05009529]
[1728492068500,0.48129932,61886.0,61885.0,0.05009529]
[1728492068721,0.05687468,61886.0,61885.0,0.05009529]
[1728492069261,0.05688414,61886.0,61885.0,0.05009529]
[1728492069940,0.04288414,61886.0,61885.0,0.05009529]
[1728492070147,0.01488414,61886.0,61885.0,0.04909529]
[1728492070731,0.03588414,61886.0,61885.0,0.05009529]
[1728492070976,0.01488414,61886.0,61885.0,0.04909529]
[1728492071213,0.23273415,61886.0,61885.0,0.04909529]
[1728492071457,0.23573415,61886.0,61885.0,0.04909529]
[1728492072609,0.18347114,61886.0,61885.0,0.04909529]
[1728492073299,0.17847114,61886.0,61885.0,0.04909529]
[1728492073737,0.18447114,61886.0,61885.0,0.04909529]
[1728492076216,0.18447114,61886.0,61885.0,0.04991529]
[1728492078428,0.34530878,61886.0,61885.0,0.04991529]
[1728492078631,0.57580815,61886.0,61885.0,0.04991529]
[1728492078876,0.55232061,61886.0,61885.0,0.04991529]
[1728492079111,0.45030878,61886.0,61885.0,0.04991529]
[1728492079357,0.28447114,61886.0,61885.0,0.04991529]
[1728492079588,0.28147114,61886.0,61885.0,0.04991529]
[1728492079819,0.29047114,61886.0,61885.0,0.05091529]
[1728492080090,0.28747114,61886.0,61885.0,0.05091529]
[1728492080449,0.19647114,61886.0,61885.0,0.05091529]
[1728492080730,0.19447114,61886.0,61885.0,0.05091529]
[1728492081157,0.17647114,61886.0,61885.0,0.04991529]
[1728492081566,0.18747114,61886.0,61885.0,0.04991529]
[1728492082227,0.27085045,61886.0,61885.0,0.04991529]
[1728492082673,0.26185045,61886.0,61885.0,0.04991529]
[1728492082898,0.24696631,61886.0,61885.0,0.04991529]
[1728492083107,0.27488338,61886.0,61885.0,0.00182]
[1728492083314,0.27088338,61886.0,61885.0,0.00182]
[1728492083537,0.26188338,61886.0,61885.0,0.00082]
[1728492083741,0.18150407,61886.0,61885.0,0.00082]
[1728492083946,0.17950407,61886.0,61885.0,0.00082]
[1728492084149,0.18150407,61886.0,61885.0,0.00082]
[1728492084452,0.18250407,61886.0,61885.0,0.00082]
[1728492084663,0.17850407,61886.0,61885.0,0.00082]
[1728492084860,0.26098668,61886.0,61885.0,0.00082]
[1728492085061,0.17850407,61886.0,61885.0,0.00082]
[1728492085919,0.18250407,61886.0,61885.0,0.00082]
[1728492086128,0.18850407,61886.0,61885.0,0.00082]
[1728492086334,0.18450334,61886.0,61885.0,0.00082]
[1728492086535,0.19050334,61886.0,61885.0,0.00182]
[1728492087128,0.27418587,61886.0,61885.0,0.00182]
[1728492088029,0.19050334,61886.0,61885.0,0.00182]
[1728492089556,0.175587,61886.0,61885.0,0.00182]
[1728492089797,0.19050486,61886.0,61885.0,0.00182]
[1728492091161,0.19050486,61886.0,61885.0,1e-06]
[1728492091162,0.98600705,61886.0,61885.0,1e-06]
[1728492091397,0.268616,61875.0,61874.0,0.24236353]
[1728492091628,0.4443715,61875.0,61874.0,0.24236353]
[1728492091986,0.268618,61874.0,61873.0,0.00082]
[1728492092212,0.4443735,61874.0,61873.0,0.00082]
[1728492092450,0.46786104,61874.0,61873.0,0.00082]
[1728492093647,0.47286104,61874.0,61873.0,0.00082]
[1728492094277,0.47786104,61874.0,61873.0,0.00082]
[1728492094677,0.47586104,61874.0,61873.0,0.00082]
[1728492094877,0.47786104,61874.0,61873.0,0.00082]
[1728492096982,0.28853586,61874.0,61873.0,0.00082]
[1728492097393,0.41435675,61874.0,61873.0,0.00082]
[1728492097967,0.41935675,61874.0,61873.0,0.00082]
[1728492098891,0.28653586,61874.0,61873.0,0.00082]
[1728492099757,0.28853586,61874.0,61873.0,0.00082]
[1728492101587,0.02491786,61874.0,61873.0,0.26716664]
[1728492101826,0.01,61874.0,61873.0,0.26716664]
[1728492102259,0.01,61874.0,61873.0,0.28227586]
[1728492102510,0.01984677,61874.0,61873.0,0.28227586]
[1728492102758,0.01984677,61874.0,61873.0,0.26716664]
[1728492103222,0.01484677,61874.0,61873.0,0.26716664]
[1728492103453,0.323186,61884.0,61873.0,0.28227726]
[1728492103676,0.323219,61878.0,61874.0,0.01511062]
[1728492103903,0.323228,61876.0,61873.0,0.08022]
[1728492104125,0.323228,61876.0,61874.0,0.0151107]
[1728492104351,0.161616,61875.0,61874.0,0.0151107]
[1728492104843,0.40397953,61875.0,61874.0,0.01511241]
[1728492105035,0.40397953,61875.0,61873.0,0.00082]
[1728492105036,0.268618,61874.0,61873.0,0.00082]
[1728492105252,0.81243606,61874.0,61873.0,0.00082]
[1728492105464,0.8359236,61874.0,61873.0,0.00082]
[1728492106376,1.4141866,61874.0,61873.0,0.00082]
[1728492106589,0.291626,61871.0,61870.0,0.00082]
[1728492106798,0.93654174,61871.0,61870.0,0.00082]
[1728492106980,0.79089928,61871.0,61870.0,0.00082]
[1728492107647,0.168647,61863.0,61856.0,0.00164]
[1728492107861,0.71007803,61863.0,61859.0,0.24236353]
[1728492108065,0.71007803,61863.0,61856.0,0.00164]
[1728492108276,0.88030209,61863.0,61856.0,0.00164]
[1728492109415,0.89030209,61863.0,61856.0,0.00164]
[1728492109856,0.89530209,61863.0,61856.0,0.00164]
[1728492110195,0.89030209,61863.0,61856.0,0.00164]
[1728492110425,0.89930209,61863.0,61856.0,0.00164]
[1728492112096,0.94780209,61863.0,61856.0,0.00164]
[1728492112960,0.89930209,61863.0,61856.0,0.00164]
[1728492113545,0.77556557,61863.0,61856.0,0.00164]
[1728492113767,0.44648464,61863.0,61858.0,0.0756]
[1728492113981,0.47197218,61863.0,61858.0,0.0756]
[1728492114889,0.44848464,61863.0,61858.0,0.0756]
[1728492115112,0.44648464,61863.0,61858.0,0.0756]
[1728492115588,0.590318,61863.0,61858.0,0.0756]
[1728492115777,0.44848464,61863.0,61858.0,0.0756]
[1728492116239,0.44648464,61863.0,61858.0,0.0756]
[1728492116721,0.44848464,61863.0,61858.0,0.0756]
[1728492118046,0.280647,61863.0,61858.0,0.0756]
[1728492118288,0.180647,61863.0,61858.0,0.0756]
[1728492118954,0.171647,61863.0,61858.0,0.0756]
[1728492119430,0.170647,61863.0,61858.0,0.0756]
[1728492119644,0.2913966,61863.0,61858.0,0.0756]
[1728492119886,0.2843966,61863.0,61858.0,0.0756]
[1728492120109,0.2893966,61863.0,61858.0,0.0756]
[1728492120336,0.2873966,61863.0,61858.0,0.0756]
[1728492120987,0.172647,61863.0,61858.0,0.0756]
[1728492121621,0.172647,61863.0,61861.0,0.161652]
[1728492121622,0.011,61863.0,61861.0,0.161652]
[1728492121841,0.011,61863.0,61858.0,0.0756]
[1728492121842,0.011,61863.0,61862.0,0.24279]
[1728492122111,0.011,61863.0,61862.0,0.42319]
[1728492122317,0.006,61863.0,61862.0,0.58402764]
[1728492122760,0.01,61863.0,61862.0,0.73983425]
[1728492123217,0.006,61863.0,61862.0,0.73983425]
[1728492123441,0.161612,61877.0,61872.0,0.1959]
[1728492123897,0.323214,61879.0,61872.0,0.1959]
[1728492124138,0.16161,61878.0,61872.0,0.357523]
[1728492124633,0.16161,61878.0,61872.0,0.1959]
[1728492124634,0.52295692,61876.0,61872.0,0.1959]
[1728492124855,0.161647,61863.0,61862.0,0.003]
[1728492125329,0.161657,61859.0,61858.0,0.1847]
[1728492125535,0.1765023,61859.0,61858.0,0.1847]
[1728492125747,0.1765023,61859.0,61858.0,0.265]
[1728492126008,0.06492513,61859.0,61858.0,0.265]
[1728492126706,0.06592513,61859.0,61858.0,0.268]
[1728492126959,0.06592521,61859.0,61858.0,0.268]
[1728492127207,0.01684538,61859.0,61858.0,0.272]
[1728492128667,0.17850238,61859.0,61858.0,0.272]
[1728492130033,0.163657,61859.0,61858.0,0.272]
[1728492130230,0.17850866,61859.0,61858.0,0.272]
[1728492130447,0.26101933,61859.0,61858.0,0.272]
[1728492130647,0.26101933,61859.0,61858.0,0.0873]
[1728492130648,0.17850866,61859.0,61858.0,0.0873]
[1728492133578,0.17850866,61859.0,61855.0,0.000818]
[1728492133579,0.3393463,61859.0,61855.0,0.000818]
[1728492133795,0.95250064,61857.0,61855.0,0.000818]
[1728492134266,1.3828073,61857.0,61855.0,0.000818]
[1728492134526,1.40629484,61857.0,61855.0,0.000818]
[1728492134771,1.40629484,61857.0,61856.0,0.00264]
[1728492135237,0.007,61856.0,61855.0,0.000818]
[1728492135472,2.89939675,61856.0,61855.0,0.000818]
[1728492135949,1.78542075,61856.0,61855.0,0.000818]
[1728492136181,1.75830975,61856.0,61855.0,0.000818]
[1728492136411,1.15365275,61856.0,61855.0,0.000818]
[1728492136634,1.16765275,61856.0,61855.0,0.000818]
[1728492139117,0.3723543,61856.0,61855.0,0.000818]
[1728492139343,0.55935221,61856.0,61855.0,0.000818]
[1728492139849,0.54535221,61856.0,61855.0,0.000818]
[1728492140073,0.53135221,61856.0,61855.0,0.000818]
[1728492140296,0.54535221,61856.0,61855.0,0.000818]
[1728492140532,0.68283975,61856.0,61855.0,0.000818]
[1728492141717,0.29051666,61856.0,61855.0,0.000818]
[1728492141941,0.30951666,61856.0,61855.0,0.000818]
[1728492142194,0.29551666,61856.0,61855.0,0.000818]
[1728492142413,0.27651666,61856.0,61855.0,0.000818]
[1728492142653,0.29051666,61856.0,61855.0,0.000818]
[1728492142872,0.29951666,61856.0,61855.0,0.000818]
[1728492143097,0.19951666,61856.0,61855.0,0.000818]
[1728492143345,0.175665,61856.0,61855.0,0.274518]
[1728492143563,0.17648216,61856.0,61855.0,0.274518]
[1728492143806,0.02381716,61856.0,61855.0,0.274518]
[1728492144044,0.02381716,61856.0,61855.0,0.436186]
[1728492144287,0.03781716,61856.0,61855.0,0.436186]
[1728492144753,0.03781716,61856.0,61855.0,0.274518]
[1728492145025,0.02881716,61856.0,61855.0,0.274518]
[1728492145280,0.03481716,61856.0,61855.0,0.274518]
[1728492145752,0.01481716,61856.0,61855.0,0.274518]
[1728492145993,0.02181716,61856.0,61855.0,0.274518]
[1728492146232,0.01481716,61856.0,61855.0,0.274518]
[1728492146705,0.01781598,61856.0,61855.0,0.274518]
[1728492146959,0.02081598,61856.0,61855.0,0.274518]
[1728492147905,0.006,61856.0,61855.0,0.59702364]
[1728492148116,0.24236353,61869.0,61862.0,0.16165]
[1728492148322,0.24236353,61869.0,61862.0,0.70882584]
[1728492148530,0.40399553,61869.0,61862.0,0.70882584]
[1728492149158,0.24236353,61869.0,61862.0,0.42835]
[1728492149783,0.002642,61863.0,61862.0,0.43135]
[1728492152409,0.002642,61863.0,61862.0,0.2697]
[1728492152664,0.164289,61863.0,61862.0,0.2697]
[1728492152902,0.2278507,61863.0,61862.0,0.0824]
[1728492153125,0.2278507,61863.0,61862.0,0.003]
[1728492153568,0.1780934,61863.0,61862.0,0.002]
[1728492153825,0.0164464,61863.0,61862.0,0.002]
[1728492154026,0.0164464,61863.0,61862.0,0.16365]
[1728492154444,0.001642,61863.0,61862.0,0.002]
[1728492155104,0.001642,61863.0,61862.0,0.003]
[1728492156156,0.01645052,61863.0,61862.0,0.003]
[1728492156821,0.23823477,61863.0,61862.0,0.003]
[1728492157307,0.23823436,61863.0,61862.0,0.003]
[1728492157549,0.17809711,61863.0,61862.0,0.003]
[1728492157782,0.01645011,61863.0,61862.0,0.003]
[1728492158223,0.17809711,61863.0,61862.0,0.003]
[1728492158751,0.01645011,61863.0,61862.0,0.003]
[1728492159447,0.001642,61863.0,61862.0,0.003]
[1728492159684,0.001642,61863.0,61862.0,0.44285]
[1728492160056,0.001642,61863.0,61862.0,0.2812]
[1728492161240,0.22001735,61863.0,61862.0,0.2812]
[1728492161597,0.23482206,61863.0,61862.0,0.2812]
[1728492161813,0.01644671,61863.0,61862.0,0.2812]
[1728492162025,0.17809371,61863.0,61862.0,0.0833]
[1728492162642,0.01644671,61863.0,61862.0,0.0833]
[1728492162841,0.001642,61863.0,61862.0,0.43105]
[1728492165649,0.001642,61863.0,61862.0,0.43005]
[1728492165892,0.001642,61863.0,61862.0,0.43405]
[1728492166296,0.001642,61863.0,61862.0,0.57087847]
[1728492166689,0.001642,61863.0,61862.0,0.75773994]
[1728492166900,0.002642,61863.0,61862.0,0.76073994]
[1728492167852,0.002642,61863.0,61862.0,0.78474911]
[1728492168721,0.002642,61863.0,61862.0,0.80774911]
[1728492169163,0.001642,61863.0,61862.0,0.79874911]
[1728492169586,0.003642,61863.0,61862.0,0.81174911]
[1728492169800,0.002642,61863.0,61862.0,0.80474911]
[1728492170273,0.002642,61863.0,61862.0,0.95590843]
[1728492170682,0.002642,61863.0,61862.0,0.80874911]
[1728492171323,0.001642,61863.0,61862.0,0.80274911]
[1728492171761,0.001642,61863.0,61862.0,0.80774911]
[1728492173463,0.24236353,61876.0,61875.0,0.161616]
[1728492173663,0.24236353,61876.0,61875.0,0.62507747]
[1728492174048,0.24236353,61883.0,61877.0,0.161609]
[1728492174246,0.24236353,61883.0,61879.0,0.18686147]
[1728492174521,0.00164,61885.0,61879.0,0.18686147]
[1728492174735,0.24400353,61885.0,61879.0,0.18686147]
[1728492174937,0.24400353,61885.0,61879.0,0.34846547]
[1728492175346,0.00164,61885.0,61879.0,0.34846547]
[1728492175569,0.009,61883.0,61879.0,0.34846547]
[1728492175966,0.005,61883.0,61879.0,0.34846547]
[1728492176206,0.005,61883.0,61879.0,0.18786147]
[1728492176406,0.00764,61885.0,61879.0,0.34946647]
[1728492176612,0.01464,61885.0,61879.0,0.35046647]
[1728492177342,0.01464,61885.0,61880.0,0.161601]
[1728492177551,0.01464,61885.0,61883.0,0.18686147]
[1728492178047,0.00764,61885.0,61884.0,0.239092]
[1728492178270,0.00164,61885.0,61884.0,0.239092]
[1728492178478,0.00164,61885.0,61884.0,0.28005615]
[1728492178687,0.00164,61885.0,61884.0,0.47145615]
[1728492178896,0.00464,61885.0,61884.0,0.47145615]
[1728492179334,0.00264,61885.0,61884.0,0.47745615]